bitfinex/quotes_BTCUSD_20241021
["timestamp","ask_amount","ask_price","bid_price","bid_amount"]
[1729538750480,0.16116734,67637.0,67636.0,0.15285]
[1729538751763,0.16116734,67637.0,67636.0,0.15785]
[1729538751984,0.16116734,67637.0,67636.0,0.15285]
[1729538753038,0.16116734,67637.0,67636.0,0.15785]
[1729538757177,0.16116734,67637.0,67636.0,0.16285]
[1729538757815,0.16116734,67637.0,67636.0,0.15785]
[1729538758046,0.16116734,67637.0,67636.0,0.15285]
[1729538758295,0.01220819,67637.0,67636.0,0.15285]
[1729538758515,0.01220819,67637.0,67636.0,0.15385]
[1729538758725,0.000826,67637.0,67636.0,0.15385]
[1729538759169,0.000826,67637.0,67636.0,0.15485]
[1729538759612,0.000826,67637.0,67636.0,0.15285]
[1729538759836,0.000826,67637.0,67636.0,0.15385]
[1729538760046,0.000826,67637.0,67636.0,0.15685]
[1729538760471,0.000826,67637.0,67636.0,0.16085]
[1729538761094,0.000826,67637.0,67636.0,0.4588182]
[1729538761321,0.000826,67637.0,67636.0,0.33625]
[1729538761533,0.000826,67637.0,67636.0,0.34125]
[1729538761750,0.000826,67637.0,67636.0,0.33625]
[1729538762252,0.000826,67637.0,67636.0,0.34125]
[1729538762466,0.000826,67637.0,67636.0,0.33725]
[1729538762673,0.000826,67637.0,67636.0,0.46825459]
[1729538762884,0.000826,67637.0,67636.0,0.47625459]
[1729538763098,0.000826,67637.0,67636.0,0.48625459]
[1729538763338,0.000826,67637.0,67636.0,0.46825459]
[1729538763564,0.000838,67651.0,67650.0,0.152819]
[1729538763791,0.000838,67651.0,67650.0,0.327919]
[1729538765276,0.000838,67651.0,67650.0,0.147819]
[1729538765490,0.14979715,67651.0,67650.0,0.152819]
[1729538766117,0.14979715,67651.0,67650.0,0.164819]
[1729538766265,0.14979715,67651.0,67650.0,0.153819]
[1729538766687,0.14979715,67651.0,67650.0,0.156819]
[1729538767282,0.14979715,67651.0,67650.0,0.157819]
[1729538768753,0.14979715,67651.0,67650.0,0.154819]
[1729538769193,0.14979715,67651.0,67650.0,0.152819]
[1729538772269,0.14979715,67651.0,67650.0,0.154819]
[1729538772613,0.14979715,67651.0,67650.0,0.156819]
[1729538772836,0.14979715,67651.0,67650.0,0.154819]
[1729538773280,0.14979715,67651.0,67650.0,0.152819]
[1729538774907,0.000838,67651.0,67650.0,0.17796239]
[1729538775104,0.000838,67651.0,67650.0,0.323619]
[1729538776142,0.000838,67651.0,67650.0,0.332619]
[1729538776350,0.000838,67651.0,67650.0,0.323619]
[1729538776551,0.000838,67651.0,67650.0,0.4461759]
[1729538776958,0.000838,67651.0,67650.0,0.4681759]
[1729538778239,0.000838,67651.0,67650.0,0.4561759]
[1729538778442,0.000838,67651.0,67650.0,0.4601759]
[1729538778866,0.000838,67651.0,67650.0,0.4461759]
[1729538779090,0.000838,67651.0,67650.0,0.4581759]
[1729538779251,0.000838,67651.0,67650.0,0.4832785]
[1729538779460,0.000838,67651.0,67650.0,0.3607216]
[1729538780186,0.000838,67651.0,67650.0,0.3477216]
[1729538781552,0.000838,67651.0,67650.0,0.3577216]
[1729538787729,0.000838,67651.0,67650.0,0.4727216]
[1729538788609,0.000838,67651.0,67650.0,0.4627216]
[1729538788821,0.000838,67651.0,67650.0,0.59605396]
[1729538789271,0.000838,67651.0,67650.0,0.60005396]
[1729538789502,0.000838,67651.0,67650.0,0.58605396]
[1729538789706,0.000838,67651.0,67650.0,0.60005396]
[1729538790334,0.000838,67651.0,67650.0,0.60205396]
[1729538790550,0.000838,67651.0,67650.0,0.60005396]
[1729538791168,0.000838,67651.0,67650.0,0.61405396]
[1729538792187,0.000838,67651.0,67650.0,0.4787216]
[1729538803585,0.000838,67651.0,67650.0,1.1787216]
[1729538814876,0.000838,67658.0,67657.0,0.267804]
[1729538815079,0.000837,67660.0,67659.0,0.440499]
[1729538815258,0.22351363,67673.0,67665.0,0.152786]
[1729538815926,0.22351363,67673.0,67671.0,0.147773]
[1729538817559,0.0771,67678.0,67671.0,0.147773]
[1729538817769,0.0771,67678.0,67671.0,0.847773]
[1729538819983,0.099,67679.0,67671.0,0.847773]
[1729538819984,0.34634915,67672.0,67671.0,0.847773]
[1729538820763,0.34634915,67672.0,67671.0,0.147773]
[1729538823974,0.35583331,67672.0,67671.0,0.147773]
[1729538824870,0.35583331,67672.0,67663.0,0.005]
[1729538824871,0.023,67671.0,67663.0,0.005]
[1729538825084,0.17195915,67671.0,67670.0,0.147775]
[1729538825586,0.18144331,67671.0,67670.0,0.147775]
[1729538825816,0.18144331,67671.0,67660.0,0.7]
[1729538826034,0.22576465,67671.0,67667.0,0.295564]
[1729538826260,0.023,67669.0,67668.0,0.147779]
[1729538826485,0.17195915,67669.0,67668.0,0.147779]
[1729538826703,0.18146748,67669.0,67668.0,0.14778]
[1729538826959,0.19533127,67669.0,67668.0,0.14778]
[1729538827405,0.18146748,67669.0,67668.0,0.14778]
[1729538827626,0.19532849,67669.0,67667.0,0.147782]
[1729538827848,0.023,67667.0,67662.0,0.295586]
[1729538828074,0.023,67667.0,67666.0,0.147784]
[1729538828290,0.023,67669.0,67667.0,0.147781]
[1729538828761,0.03686018,67669.0,67667.0,0.147781]
[1729538828982,0.023,67669.0,67666.0,0.295569]
[1729538829208,0.023,67669.0,67668.0,0.14778]
[1729538829447,0.17195915,67669.0,67668.0,0.14778]
[1729538832149,0.17278515,67669.0,67668.0,0.14778]
[1729538835958,0.17278515,67669.0,67668.0,0.22908]
[1729538835959,0.14978515,67669.0,67668.0,0.22908]
[1729538836394,0.000826,67669.0,67668.0,0.30391862]
[1729538836923,0.000826,67669.0,67668.0,0.22408]
[1729538837342,0.000826,67669.0,67668.0,0.22908]
[1729538837551,0.000826,67669.0,67668.0,0.92908]
[1729538838267,0.000826,67669.0,67668.0,0.92408]
[1729538838473,0.000826,67669.0,67668.0,0.92908]
[1729538838692,0.000826,67669.0,67668.0,0.92408]
[1729538838919,0.000826,67669.0,67668.0,0.92908]
[1729538839541,0.14978515,67669.0,67668.0,0.92908]
[1729538839794,0.14978515,67669.0,67668.0,0.85278]
[1729538840651,0.14978515,67669.0,67668.0,0.15278]
[1729538842821,0.17278515,67669.0,67668.0,0.14778]
[1729538843223,0.1871546,67669.0,67668.0,0.14778]
[1729538859165,0.1641546,67669.0,67668.0,0.14778]
[1729538859332,0.1641546,67669.0,67668.0,0.32728]
[1729538859534,0.14978515,67669.0,67668.0,0.32728]
[1729538862002,0.14978515,67669.0,67668.0,0.33128]
[1729538862223,0.14978515,67669.0,67668.0,0.33228]
[1729538862637,0.14978515,67669.0,67668.0,0.33628]
[1729538863593,0.14978515,67669.0,67668.0,0.33128]
[1729538864054,0.14978515,67669.0,67668.0,0.33528]
[1729538864502,0.14978515,67669.0,67668.0,0.23578]
[1729538875695,0.16414636,67669.0,67668.0,0.23578]
[1729538876733,0.14978515,67669.0,67668.0,0.23578]
[1729538885247,0.14978515,67669.0,67668.0,0.23478]
[1729538886186,0.14978515,67669.0,67668.0,0.23388]
[1729538886420,0.14978515,67669.0,67668.0,0.23378]
[1729538887133,0.14978515,67669.0,67668.0,0.23298]
[1729538887359,0.14978515,67669.0,67668.0,0.23288]
[1729538887607,0.14978515,67669.0,67668.0,0.23278]
[1729538888068,0.14978515,67669.0,67668.0,0.23198]
[1729538888303,0.14978515,67669.0,67668.0,0.23188]
[1729538888532,0.14978515,67669.0,67668.0,0.23178]
[1729538889000,0.14978515,67669.0,67668.0,0.23108]
[1729538889215,0.1641603,67669.0,67668.0,0.23088]
[1729538889463,0.14978515,67669.0,67668.0,0.23078]
[1729538889684,0.1641603,67669.0,67668.0,0.23078]
[1729538891599,0.01520115,67669.0,67668.0,0.32748]
[1729538892043,0.000826,67669.0,67668.0,0.32748]
[1729538892301,0.000826,67669.0,67668.0,0.32348]
[1729538892553,0.000826,67669.0,67668.0,0.31948]
[1729538892794,0.000826,67669.0,67668.0,0.33748]
[1729538893277,0.000826,67669.0,67668.0,0.33148]
[1729538893502,0.000826,67669.0,67668.0,0.34148]
[1729538897084,0.000826,67669.0,67668.0,0.33648]
[1729538897514,0.000826,67669.0,67668.0,0.34148]
[1729538900410,0.000826,67669.0,67668.0,0.343134]
[1729538900620,0.14978515,67669.0,67668.0,0.166434]
[1729538900828,0.17278515,67669.0,67668.0,0.166434]
[1729538901033,0.18721279,67669.0,67668.0,0.166434]
[1729538901650,0.18721279,67669.0,67668.0,0.144434]
[1729538907143,0.18721279,67669.0,67668.0,0.316234]
[1729538907591,0.17278515,67669.0,67668.0,0.144434]
[1729538907813,0.17278515,67669.0,67668.0,0.149434]
[1729538908247,0.18720492,67669.0,67668.0,0.149434]
[1729538908481,0.18720492,67669.0,67668.0,0.150434]
[1729538909423,0.18720492,67669.0,67668.0,0.149434]
[1729538913799,0.17278515,67669.0,67668.0,0.149434]
[1729538914202,0.18720492,67669.0,67668.0,0.149434]
[1729538919753,0.17278515,67669.0,67668.0,0.149434]
[1729538926223,0.17278515,67669.0,67668.0,0.241334]
[1729538927057,0.17278515,67669.0,67668.0,0.323034]
[1729538927362,0.14978515,67669.0,67668.0,0.323034]
[1729538928349,0.14978515,67669.0,67668.0,0.328034]
[1729538928753,0.14978515,67669.0,67668.0,0.333034]
[1729538928977,0.14978515,67669.0,67668.0,0.328034]
[1729538929582,0.000826,67669.0,67668.0,0.328034]
[1729538930523,0.000826,67669.0,67668.0,1.028034]
[1729538930734,0.000826,67669.0,67668.0,1.034034]
[1729538931141,0.000826,67669.0,67668.0,1.033034]
[1729538931492,0.000826,67669.0,67668.0,1.037034]
[1729538932011,0.000826,67669.0,67668.0,0.345034]
[1729538933565,0.000826,67669.0,67668.0,1.045034]
[1729538935558,0.000826,67669.0,67668.0,0.345034]
[1729538950249,0.000826,67669.0,67668.0,0.337034]
[1729538950704,0.000826,67669.0,67668.0,1.045034]
[1729538950869,0.000826,67669.0,67668.0,1.036034]
[1729538951075,0.000826,67669.0,67668.0,1.037034]
[1729538951251,0.000826,67669.0,67668.0,0.328034]
[1729538952541,0.000826,67669.0,67668.0,0.336034]
[1729538953007,0.000826,67669.0,67668.0,0.337034]
[1729538953187,0.000826,67669.0,67668.0,0.347034]
[1729538953383,0.000826,67669.0,67668.0,0.338034]
[1729538953608,0.000826,67669.0,67668.0,0.350034]
[1729538955843,0.000826,67669.0,67668.0,1.050034]
[1729538956077,0.000826,67669.0,67668.0,0.350034]
[1729538959111,0.000826,67669.0,67668.0,1.050034]
[1729538968038,0.000826,67669.0,67668.0,0.350034]
[1729538970275,0.000826,67669.0,67668.0,0.37186468]
[1729538970493,0.000826,67669.0,67668.0,0.350034]
[1729538971156,0.000826,67669.0,67668.0,1.050034]
[1729538972945,0.000826,67669.0,67668.0,1.055034]
[1729538985574,0.22351363,67687.0,67686.0,0.152741]
[1729538985778,0.37247278,67687.0,67686.0,0.152741]
[1729538986002,0.37247278,67687.0,67686.0,0.2447241]
[1729538986003,0.01449606,67687.0,67686.0,0.2447241]
[1729538986229,0.01449606,67687.0,67686.0,0.333941]
[1729538986478,0.22451363,67700.0,67696.0,0.005]
[1729538986749,0.22451363,67700.0,67699.0,0.147712]
[1729538987183,0.14995915,67700.0,67699.0,0.147712]
[1729538988815,0.14995915,67700.0,67699.0,0.152712]
[1729538989021,0.17295915,67700.0,67699.0,0.152712]
[1729538989261,0.27055915,67700.0,67699.0,0.152712]
[1729538989481,0.28505521,67700.0,67699.0,0.152712]
[1729538990060,0.28505521,67700.0,67699.0,0.156712]
[1729538990271,0.36745521,67700.0,67699.0,0.009]
[1729538990520,0.51516521,67700.0,67699.0,0.005]
[1729538990725,0.63898894,67700.0,67699.0,0.005]
[1729538990944,0.94913222,67700.0,67699.0,0.005]
[1729538991176,0.147725,67694.0,67686.0,0.295482]
[1729538991367,0.14895915,67691.0,67687.0,0.147738]
[1729538991618,0.023,67690.0,67689.0,0.147734]
[1729538991772,0.17195915,67690.0,67689.0,0.147734]
[1729538991974,0.18659435,67690.0,67689.0,0.147734]
[1729538993609,0.18659435,67690.0,67686.0,0.295479]
[1729538993812,0.023,67688.0,67687.0,0.147738]
[1729538994016,0.17195915,67688.0,67687.0,0.147738]
[1729538994384,0.18659435,67688.0,67687.0,0.147738]
[1729538996779,0.17195915,67688.0,67687.0,0.147738]
[1729538998302,0.18659435,67688.0,67687.0,0.147738]
[1729538999584,0.17195915,67688.0,67687.0,0.147738]
[1729539000974,0.17195915,67688.0,67671.0,0.0973]
[1729539000975,0.34805915,67688.0,67671.0,0.0973]
[1729539001181,0.023,67679.0,67675.0,0.295526]
[1729539001402,0.17195915,67677.0,67667.0,0.295561]
[1729539001549,0.17195915,67677.0,67675.0,0.147764]
[1729539002028,0.17195915,67677.0,67676.0,0.149414]
[1729539002560,0.17195915,67677.0,67676.0,0.150414]
[1729539002973,0.17195915,67677.0,67676.0,0.151414]
[1729539003585,0.17195915,67677.0,67676.0,0.150414]
[1729539004004,0.17195915,67677.0,67676.0,0.151414]
[1729539005142,0.17278515,67677.0,67676.0,0.151414]
[1729539005586,0.17278515,67677.0,67676.0,0.003652]
[1729539006021,0.25108515,67677.0,67676.0,0.003652]
[1729539006477,0.39884515,67677.0,67676.0,0.003652]
[1729539006712,0.49544515,67677.0,67676.0,0.003652]
[1729539007137,0.34768515,67677.0,67676.0,0.003652]
[1729539007975,1.86014515,67677.0,67676.0,0.003652]
[1729539008775,1.87395627,67677.0,67676.0,0.003652]
[1729539009207,1.86014515,67677.0,67676.0,0.003652]
[1729539014295,1.76354515,67677.0,67676.0,0.003652]
[1729539014504,1.68524515,67677.0,67676.0,0.003652]
[1729539017351,1.68524515,67677.0,67676.0,0.002652]
[1729539017553,1.69955042,67677.0,67676.0,0.002652]
[1729539017891,1.70855042,67677.0,67676.0,0.003652]
[1729539018640,0.45385042,67677.0,67676.0,0.003652]
[1729539020367,0.46767237,67677.0,67676.0,0.003652]
[1729539021083,0.45385042,67677.0,67676.0,0.003652]
[1729539021636,0.46767338,67677.0,67676.0,0.003652]
[1729539021842,0.45385042,67677.0,67676.0,0.003652]
[1729539022261,0.46767349,67677.0,67676.0,0.003652]
[1729539022476,0.31991349,67677.0,67676.0,0.003652]
[1729539022685,0.46767349,67677.0,67676.0,0.003652]
[1729539022887,0.31991349,67677.0,67676.0,0.003652]
[1729539023085,0.45385042,67677.0,67676.0,0.003652]
[1729539023309,0.17309042,67677.0,67676.0,0.324814]
[1729539023782,0.17309042,67677.0,67676.0,0.329814]
[1729539024251,0.15878515,67677.0,67676.0,0.329814]
[1729539024666,0.14978515,67677.0,67676.0,0.328814]
[1729539024865,0.14978515,67677.0,67676.0,0.327814]
[1729539025064,0.14978515,67677.0,67676.0,0.332814]
[1729539025264,0.14978515,67677.0,67676.0,0.338814]
[1729539025477,0.14978515,67677.0,67676.0,0.333814]
[1729539025890,0.14978515,67677.0,67676.0,0.339814]
[1729539027913,0.14978515,67677.0,67676.0,0.334814]
[1729539031870,0.14978515,67677.0,67676.0,0.242614]
[1729539032087,0.14978515,67677.0,67676.0,0.013652]
[1729539032088,0.17278515,67677.0,67676.0,0.013652]
[1729539032525,0.18480992,67677.0,67676.0,0.013652]
[1729539032734,0.18480992,67677.0,67676.0,0.161414]
[1729539033822,0.18480992,67677.0,67676.0,0.155414]
[1729539034053,0.18480992,67677.0,67676.0,0.149414]
[1729539034272,0.18980992,67677.0,67676.0,0.149414]
[1729539034501,0.19480992,67677.0,67676.0,0.149414]
[1729539034715,0.17778515,67677.0,67676.0,0.149414]
[1729539035553,0.18278515,67677.0,67676.0,0.149414]
[1729539035962,0.17778515,67677.0,67676.0,0.149414]
[1729539036859,0.17278515,67677.0,67676.0,0.149414]
[1729539037286,0.17878515,67677.0,67676.0,0.149414]
[1729539038157,0.17878515,67677.0,67676.0,0.232614]
[1729539038586,0.15578515,67677.0,67676.0,0.330214]
[1729539039004,0.16780992,67677.0,67676.0,0.330214]
[1729539039233,0.16780992,67677.0,67676.0,0.335214]
[1729539039852,0.16480992,67677.0,67676.0,0.335214]
[1729539040234,0.16480992,67677.0,67676.0,0.340214]
[1729539040430,0.16180992,67677.0,67676.0,0.340214]
[1729539040632,0.16180992,67677.0,67676.0,0.345214]
[1729539046488,0.16180992,67677.0,67676.0,0.335214]
[1729539046710,0.16180992,67677.0,67676.0,0.333214]
[1729539046912,0.16180992,67677.0,67676.0,0.336214]
[1729539047880,0.16180992,67677.0,67676.0,0.333214]
[1729539048290,0.16680992,67677.0,67676.0,0.333214]
[1729539048902,0.16680992,67677.0,67676.0,0.330214]
[1729539049529,0.16380992,67677.0,67676.0,0.330214]
[1729539049734,0.16580992,67677.0,67676.0,0.330214]
[1729539050132,0.18880992,67677.0,67676.0,0.001652]
[1729539050577,0.20265722,67677.0,67676.0,0.001652]
[1729539050768,0.3504175,67677.0,67676.0,0.001652]
[1729539051132,0.2026575,67677.0,67676.0,0.001652]
[1729539051325,0.1986575,67677.0,67676.0,0.001652]
[1729539051728,0.18480992,67677.0,67676.0,0.149414]
[1729539052762,0.19480992,67677.0,67676.0,0.150414]
[1729539053385,0.19180992,67677.0,67676.0,0.150414]
[1729539053651,0.18580992,67677.0,67676.0,0.149414]
[1729539054318,0.18480992,67677.0,67676.0,0.149414]
[1729539056764,0.18780992,67677.0,67676.0,0.149414]
[1729539057590,0.17578515,67677.0,67676.0,0.149414]
[1729539058530,0.17578515,67677.0,67676.0,0.001652]
[1729539058742,0.23402097,67677.0,67676.0,0.001652]
[1729539058957,0.59620468,67677.0,67676.0,0.001652]
[1729539059162,0.67115213,67677.0,67676.0,0.001652]
[1729539059439,0.82617425,67677.0,67676.0,0.001652]
[1729539059639,0.7752172,67677.0,67676.0,0.001652]
[1729539059808,0.7822172,67677.0,67676.0,0.002652]
[1729539060280,0.90612749,67677.0,67676.0,0.001652]
[1729539060495,0.90612749,67677.0,67660.0,0.001652]
[1729539060496,0.259778,67669.0,67660.0,0.001652]
[1729539060697,1.90999665,67669.0,67660.0,0.001652]
[1729539060898,2.06509029,67669.0,67660.0,0.001652]
[1729539061105,2.17309489,67669.0,67660.0,0.001652]
[1729539061731,1.90811784,67669.0,67660.0,0.001652]
[1729539061938,1.94409272,67669.0,67660.0,0.001652]
[1729539063303,1.95209272,67669.0,67668.0,0.002654]
[1729539063525,2.07570814,67669.0,67668.0,0.003654]
[1729539063775,2.06770814,67669.0,67668.0,0.002654]
[1729539063910,2.07570814,67669.0,67668.0,0.003654]
[1729539064531,1.94295433,67669.0,67668.0,0.003654]
[1729539064812,2.02942074,67669.0,67668.0,0.003654]
[1729539065014,2.02916267,67669.0,67668.0,0.003654]
[1729539065265,1.94067222,67669.0,67668.0,0.003654]
[1729539065523,1.62765367,67669.0,67668.0,0.003654]
[1729539065793,1.77543166,67669.0,67668.0,0.003654]
[1729539066726,1.73120049,67669.0,67668.0,0.003654]
[1729539066907,1.71739022,67669.0,67668.0,0.003654]
[1729539068540,1.7311941,67669.0,67668.0,0.003654]
[1729539068745,1.71739022,67669.0,67668.0,0.003654]
[1729539068950,1.73119451,67669.0,67668.0,0.003654]
[1729539069158,1.77542568,67669.0,67668.0,0.003654]
[1729539069598,1.76162139,67669.0,67668.0,0.003654]
[1729539069890,1.77542511,67669.0,67668.0,0.003654]
[1729539070085,1.77539544,67669.0,67668.0,0.003654]
[1729539070653,2.03086365,67669.0,67668.0,0.003654]
[1729539070849,2.24829923,67669.0,67668.0,0.003654]
[1729539071438,2.01871477,67669.0,67668.0,0.003654]
[1729539071639,1.95242828,67669.0,67668.0,0.003654]
[1729539071815,2.22603095,67669.0,67668.0,0.003654]
[1729539072024,2.13764592,67669.0,67668.0,0.003654]
[1729539072219,2.24826134,67669.0,67668.0,0.003654]
[1729539072484,2.13764592,67669.0,67668.0,0.003654]
[1729539073423,2.13764122,67669.0,67668.0,0.003654]
[1729539073639,2.22600138,67669.0,67668.0,0.003654]
[1729539074284,2.13764122,67669.0,67668.0,0.003654]
[1729539075272,1.95242574,67669.0,67668.0,0.003654]
[1729539075912,1.9965973,67669.0,67668.0,0.003654]
[1729539076346,1.95242574,67669.0,67668.0,0.003654]
[1729539076548,1.97451339,67669.0,67668.0,0.003654]
[1729539076752,2.0407739,67669.0,67668.0,0.003654]
[1729539077165,1.92328865,67669.0,67668.0,0.003654]
[1729539077376,1.87910476,67669.0,67668.0,0.003654]
[1729539077764,1.90118817,67669.0,67668.0,0.003654]
[1729539077993,1.85716634,67669.0,67668.0,0.003654]
[1729539078198,1.90318885,67669.0,67668.0,0.003654]
[1729539078405,1.88110821,67669.0,67668.0,0.003654]
[1729539078611,1.9252794,67669.0,67668.0,0.003654]
[1729539078867,1.88110821,67669.0,67668.0,0.003654]
[1729539079546,1.94736872,67669.0,67668.0,0.003654]
[1729539079776,1.88110821,67669.0,67668.0,0.003654]
[1729539080005,1.94736324,67669.0,67668.0,0.003654]
[1729539080751,0.157795,67661.0,67660.0,0.001652]
[1729539080999,0.54203504,67661.0,67660.0,0.001652]
[1729539081257,1.84638482,67661.0,67660.0,0.001652]
[1729539081518,1.78012556,67661.0,67660.0,0.001652]
[1729539081726,1.84637725,67661.0,67660.0,0.001652]
[1729539082202,1.82429165,67661.0,67660.0,0.001652]
[1729539083197,1.83629277,67661.0,67660.0,0.002652]
[1729539083426,1.85029277,67661.0,67660.0,0.003652]
[1729539083667,1.85029277,67661.0,67660.0,0.002652]
[1729539083668,1.83629277,67661.0,67660.0,0.002652]
[1729539083907,1.80612786,67661.0,67660.0,0.003652]
[1729539084140,1.87037955,67661.0,67660.0,0.003652]
[1729539084373,1.87037955,67661.0,67660.0,0.001652]
[1729539084374,1.84637955,67661.0,67660.0,0.001652]
[1729539084649,1.86037955,67661.0,67660.0,0.001652]
[1729539085130,1.84637955,67661.0,67660.0,0.001652]
[1729539085356,1.84637402,67661.0,67660.0,0.001652]
[1729539086057,1.86037402,67661.0,67660.0,0.001652]
[1729539086293,1.87437402,67661.0,67660.0,0.002652]
[1729539086758,1.80612786,67661.0,67660.0,0.002652]
[1729539087284,1.73800008,67661.0,67660.0,0.002652]
[1729539087520,1.76014042,67661.0,67660.0,0.002652]
[1729539088491,1.72418573,67661.0,67660.0,0.002652]
[1729539088722,1.80624242,67661.0,67660.0,0.002652]
[1729539090395,1.79224242,67661.0,67660.0,0.002652]
[1729539090547,1.79224242,67661.0,67660.0,0.001652]
[1729539090747,1.79224242,67661.0,67660.0,0.002652]
[1729539090948,1.80624242,67661.0,67660.0,0.002652]
[1729539091250,1.79224242,67661.0,67660.0,0.002652]
[1729539091451,1.80624242,67661.0,67660.0,0.002652]
[1729539092012,1.79224772,67661.0,67660.0,0.001652]
[1729539092705,1.80624772,67661.0,67660.0,0.002652]
[1729539096457,1.85041476,67661.0,67660.0,0.002652]
[1729539097247,1.80624772,67661.0,67660.0,0.002652]
[1729539098417,1.80824772,67661.0,67660.0,0.002652]
[1729539099787,1.80624772,67661.0,67660.0,0.002652]
[1729539100200,1.85047288,67661.0,67660.0,0.002652]
[1729539100399,1.87249828,67661.0,67660.0,0.002652]
[1729539100636,1.9695534,67661.0,67660.0,0.002652]
[1729539101066,2.05788748,67661.0,67660.0,0.002652]
[1729539101269,1.85048626,67661.0,67660.0,0.002652]
[1729539101400,1.80624772,67661.0,67660.0,0.002652]
[1729539101619,2.05794844,67661.0,67660.0,0.002652]
[1729539102027,1.96961436,67661.0,67660.0,0.002652]
[1729539102633,2.08003196,67661.0,67660.0,0.002652]
[1729539102839,1.97161436,67661.0,67660.0,0.002652]
[1729539103107,1.93560363,67661.0,67660.0,0.002652]
[1729539103349,1.96964195,67661.0,67660.0,0.002652]
[1729539104610,2.10214308,67661.0,67660.0,0.002652]
[1729539104816,1.96964195,67661.0,67660.0,0.002652]
[1729539105000,2.08044546,67661.0,67660.0,0.002652]
[1729539105202,1.80627531,67661.0,67660.0,0.002652]
[1729539105364,1.96988403,67661.0,67660.0,0.002652]
[1729539106783,1.93384571,67661.0,67660.0,0.002652]
[1729539107030,1.9698819,67661.0,67660.0,0.002652]
[1729539108001,1.9558819,67661.0,67660.0,0.002652]
[1729539108212,1.9558819,67661.0,67660.0,0.001652]
[1729539108408,1.9698819,67661.0,67660.0,0.002652]
[1729539108619,1.93384571,67661.0,67660.0,0.002652]
[1729539108807,1.95588942,67661.0,67660.0,0.001652]
[1729539109015,1.96688942,67661.0,67660.0,0.002652]
[1729539109954,1.95288942,67661.0,67660.0,0.002652]
[1729539110368,1.92788781,67661.0,67660.0,0.002652]
[1729539110582,1.94175269,67661.0,67660.0,0.002652]
[1729539110723,1.9639365,67661.0,67660.0,0.002652]
[1729539113431,1.96375864,67661.0,67660.0,0.002652]
[1729539113633,1.9639365,67661.0,67660.0,0.002652]
[1729539115450,2.09705965,67661.0,67660.0,0.002652]
[1729539115650,1.96400512,67661.0,67660.0,0.002652]
[1729539116113,2.09705965,67661.0,67660.0,0.002652]
[1729539116625,1.96400512,67661.0,67660.0,0.002652]
[1729539119221,2.19325172,67661.0,67660.0,0.002652]
[1729539119790,2.19525172,67661.0,67660.0,0.002652]
[1729539120173,1.96600512,67661.0,67660.0,0.002652]
[1729539120375,1.96603876,67661.0,67660.0,0.002652]
[1729539121408,2.23649113,67661.0,67660.0,0.002652]
[1729539121644,0.023,67648.0,67645.0,0.076952]
[1729539121841,0.28173731,67646.0,67645.0,0.076952]
[1729539122060,0.39449722,67646.0,67645.0,0.076952]
[1729539122375,0.40582063,67646.0,67645.0,0.076952]
[1729539122527,0.36889148,67646.0,67645.0,0.076952]
[1729539123113,0.36889214,67646.0,67645.0,0.076952]
[1729539123331,0.51785129,67646.0,67645.0,0.076952]
[1729539123949,0.49566588,67646.0,67645.0,0.076952]
[1729539124349,0.50266588,67646.0,67645.0,0.076952]
[1729539124554,0.56877978,67646.0,67645.0,0.076952]
[1729539124773,0.42095178,67646.0,67645.0,0.172152]
[1729539124976,0.42095178,67646.0,67645.0,0.319982]
[1729539125085,0.2571987,67646.0,67645.0,0.319982]
[1729539125293,0.24163694,67646.0,67645.0,0.319982]
[1729539125695,0.19728256,67646.0,67645.0,0.319982]
[1729539126297,0.26381414,67646.0,67645.0,0.319982]
[1729539126537,0.19728256,67646.0,67645.0,0.319982]
[1729539126993,0.26381414,67646.0,67645.0,0.319982]
[1729539127442,0.26381414,67646.0,67645.0,0.172152]
[1729539127648,0.19728256,67646.0,67645.0,0.172152]
[1729539127985,0.19728256,67646.0,67645.0,0.319982]
[1729539127986,0.26381414,67646.0,67645.0,0.319982]
[1729539128385,0.19728256,67646.0,67645.0,0.319982]
[1729539128873,0.24163579,67646.0,67645.0,0.319982]
[1729539129072,0.19728256,67646.0,67645.0,0.172152]
[1729539129565,0.24163529,67646.0,67645.0,0.172152]
[1729539130018,0.21114103,67646.0,67645.0,0.172152]
[1729539130228,0.25733887,67646.0,67645.0,0.172152]
[1729539130394,0.21114103,67646.0,67645.0,0.172152]
[1729539130597,0.21114103,67646.0,67645.0,0.319982]
[1729539131158,0.27767032,67646.0,67645.0,0.319982]
[1729539131413,0.27766939,67646.0,67645.0,0.172152]
[1729539131589,0.2111401,67646.0,67645.0,0.172152]
[1729539131789,0.27766974,67646.0,67645.0,0.319982]
[1729539132003,0.27766974,67646.0,67645.0,0.172152]
[1729539132327,0.24163471,67646.0,67645.0,0.319982]
[1729539132730,0.19728256,67646.0,67645.0,0.319982]
[1729539133231,0.24163471,67646.0,67645.0,0.319982]
[1729539133458,0.24163454,67646.0,67645.0,0.319982]
[1729539133686,0.2638122,67646.0,67645.0,0.319982]
[1729539133924,0.19728256,67646.0,67645.0,0.319982]
[1729539134820,0.17428256,67646.0,67645.0,0.319982]
[1729539138141,0.17428256,67646.0,67645.0,0.32515986]
[1729539138337,0.16295915,67646.0,67645.0,0.32515986]
[1729539139133,0.15595915,67646.0,67645.0,0.32515986]
[1729539139361,0.15695915,67646.0,67645.0,0.32615986]
[1729539140151,0.14995915,67646.0,67645.0,0.32615986]
[1729539140391,0.15095915,67646.0,67645.0,0.32815986]
[1729539156990,0.32178715,67646.0,67645.0,0.004652]
[1729539157194,0.69977991,67646.0,67645.0,0.004652]
[1729539157419,1.88917089,67646.0,67645.0,0.004652]
[1729539157632,2.03413425,67646.0,67645.0,0.004652]
[1729539157795,0.01,67643.0,67630.0,0.22351363]
[1729539158045,0.002,67645.0,67624.0,0.001652]
[1729539158046,0.023,67630.0,67624.0,0.001652]
[1729539158253,0.023,67630.0,67625.0,0.147874]
[1729539158254,0.17195915,67626.0,67625.0,0.147874]
[1729539158407,0.21628178,67626.0,67625.0,0.147874]
[1729539158842,0.18113516,67626.0,67625.0,0.147874]
[1729539159063,0.023,67625.0,67624.0,0.001652]